Cogmind - Beta 15 @@@ ROGUE MODE // 2025.10.04 @ 22:22:25 Player: DietSnapple Result: Destroyed by G-34 Mercenary with Small Laser Performance ------------- Evolutions (0) 0 Regions Visited (1) 200 Robots Destroyed (14) 70 Value Destroyed (172) 172 Prototype IDs (0) 0 Alien Tech Used (0) 0 Bonus (0) 0 TOTAL SCORE: 442 Bonus ------- None Cogmind --------- Core Integrity 0/250 Matter 300/300 Energy 91/100 System Corruption 0% Temperature Hot (243) Movement Core (100) Ox1 Location -10/Materials Parts ------- > --- POWER (1) -------- (None) > --- PROPULSION (2) --- (None) > --- UTILITY (2) ------ Small Storage Unit Seismic Detector > --- WEAPON (2) ------- (None) > --- INVENTORY (8) ---- Ion Engine Ion Engine Aluminum Leg ECM Suite ECM Suite Utility Shielding Utility Shielding Mining Laser Peak State ------------ > --- POWER ------------ Ion Engine > --- PROPULSION ------- Aluminum Leg Aluminum Leg > --- UTILITY ---------- Small Storage Unit Seismic Detector > --- WEAPON ----------- Medium Laser Medium Laser > --- INVENTORY -------- Ion Engine Wheel Wheel Improved Terrain Scanner Mining Laser [Rating: 7] Favorites ----------- Power Ion Engine Engine Ion Engine Propulsion Aluminum Leg Leg Aluminum Leg Utility Small Storage Unit Device Seismic Detector Storage Small Storage Unit Weapon Medium Laser Energy Gun Medium Laser Build | -11 -10 ------- Run | Yrd Mat Slots Evolved . | . . Power . | . . Propulsion . | . . Utility . | . . Weapon . | . . Parts Attached 7 | 7 . Power 1 | 1 . Engine 1 | 1 . Core . | . . Reactor . | . . Propulsion 2 | 2 . Treads . | . . Leg 2 | 2 . Wheel . | . . Hover . | . . Flight . | . . Utility 2 | 2 . Device 1 | 1 . Storage 1 | 1 . Processor . | . . Hackware . | . . Protection . | . . Artifact . | . . Weapon 2 | 2 . Energy Gun 2 | 2 . Energy Cannon . | . . Ballistic Gun . | . . Ballistic Cannon . | . . Launcher . | . . Special Weapon . | . . Impact Weapon . | . . Slashing Weapon . | . . Piercing Weapon . | . . Special Melee Weapon . | . . Unidentified Prototypes . | . . Parts Lost 5 | . 5 Power 1 | . 1 Propulsion 2 | . 2 Utility . | . . Weapon 2 | . 2 Highest Loss Streak 5 | . 5 To Critical Strikes . | . . Average Backups 4 | 3 4 Power 1 | . 1 Propulsion . | 1 . Utility 1 | . 1 Weapon . | . 1 Tool/Special . | . . Unused Backups 11 | . 11 Power 2 | . 2 Propulsion 3 | . 3 Utility 5 | . 5 Weapon 1 | . 1 Tool/Special . | . . Average Slot Usage (%) 98 | . 98 Engine 13 | . 13 Leg 27 | . 27 Device 14 | . 14 Storage 14 | . 14 Energy Gun 27 | . 27 Peak Build Rating 7 | 7 7 Average Rating 6 | 5 6 On Entrance 3 | . 7 Naked Turns . | . . Heaviest Build 15 | 15 15 Greatest Support 20 | 20 20 Greatest Overweight (x) 2 | 2 2 Average Overweight (x) . | . . Largest Inventory Capacity 8 | 8 8 Average Capacity 7 | 7 8 Most Carried 8 | 5 8 Average Carried 4 | 3 4 Final Capacity 8 | 8 8 Final Carried 8 | 5 8 Class Distribution -------------------- 100% | Mutant Dominant Class ---------------- Mutant | -10/Materials Resources | -11 -10 ----------- Run | Yrd Mat Matter Collected 270 | 223 47 Remotely . | . . Salvage Created 401 | 179 222 Parts 27 | 14 13 Haulers Intercepted . | . . Recyclers Shooed . | . . Parts Field Recycled . | . . Retrieved Matter . | . . Parts Self-Destructed . | . . Prevented . | . . Kills | -11 -10 ------- Run | Yrd Mat Combat Hostiles Destroyed 8 | . 8 Guns 8 | . 8 Classes Destroyed 6 | 3 3 Worker 1 | 1 . Tunneler 3 | 3 . Recycler 1 | 1 . Watcher 1 | . 1 Swarmer 6 | . 6 Grunt 2 | . 2 Best Kill Streak 3 | 2 3 Combat Bots Only 3 | . 3 Max Kills in Single Turn 1 | 1 1 Gunslinging . | . . Exploded . | . . Melee . | . . Uniques/NPCs Destroyed . | . . Combat | -11 -10 -------- Run | Yrd Mat Hostile Shots Fired 78 | . 78 Missed 17 | . 17 Hits 61 | . 61 Projectile 61 | . 61 Damage Taken 690 | . 690 Core 250 | . 250 Absorbed by Shields . | . . Core Remaining (%) 100 | 100 . Volleys Fired 46 | 14 32 Largest 2 | 2 2 Hottest 100 | 100 100 Shots Fired 80 | 28 52 Gun 80 | 28 52 Cannon . | . . Launcher . | . . Special . | . . Kinetic . | . . Thermal 80 | 28 52 Explosive . | . . Electromagnetic . | . . Robot Hit Streak 14 | 6 14 Robot Miss Streak 4 | 3 4 Penetration Max . | . . Secondary Targets 4 | . 4 Max Gunslinging Chain 1 | . 1 Shots Hit Robots 48 | 16 32 Core Hits 19 | 6 13 Critical Kills . | . . Critical Parts Destroyed . | . . Critical Strikes 6 | 2 4 Burn 6 | 2 4 Melee Attacks . | . . Impact . | . . Slashing . | . . Piercing . | . . Sneak Attacks . | . . Combat Hostiles . | . . Follow-up Attacks . | . . Damage Inflicted 612 | 200 412 Guns 612 | 200 412 Cannons . | . . Explosions . | . . Melee . | . . Ramming . | . . Kinetic . | . . Thermal 612 | 200 412 Explosive . | . . Electromagnetic . | . . Impact . | . . Slashing . | . . Piercing . | . . Highest Corruption . | . . Average Corruption . | . . Corruption Purged . | . . Corruption Blocked . | . . Overload Shots . | . . Overflow Damage . | . . Projectiles . | . . Explosions . | . . Melee . | . . Knockbacks . | . . Impact . | . . Kinetic . | . . Secondary . | . . Self-Inflicted Damage . | . . Shots . | . . Rammed . | . . Targets Rammed . | . . Kicked . | . . Crushed . | . . Highest Temperature 384 | 273 384 Average Temperature 153 | 102 181 Received Heat Transfer 294 | . 294 Effects 3 | . 3 Energy Bleed 1 | . 1 Interference 2 | . 2 Siege Activations . | . . Martial Activations . | . . Shielding Activations . | . . Robots Disrupted . | . . Combat Hostiles . | . . Robots Corrupted . | . . Combat Hostiles . | . . Parts Fried . | . . Impact Corruptions . | . . Robots Melted . | . . Combat Hostiles . | . . Parts Melted 6 | 2 4 Heat Transferred 2257 | 740 1517 Parts Sabotaged . | . . Parts Stolen . | . . Parts Stripped . | . . Power Chain Reactions . | . . Alert | -11 -10 ------- Run | Yrd Mat Maximum Alert Level . | . . Low Security (%) 100 | 100 100 Level 1 . | . . Level 2 . | . . Level 3 . | . . Level 4 . | . . Level 5 . | . . High Security . | . . Max Security . | . . Peak Influence 85 | 5 85 Initial . | . . Average 19 | 1 26 Influence Increases 243 | 25 218 Destroy 0b10 Robot/C 160 | . 160 Destroy 0b10 Robot/NC 30 | 25 5 Destroy Leader 32 | . 32 Successful Hack 5 | . 5 Destroy Structure 1 | . 1 Lose Combat Pursuer 15 | . 15 Influence Decreases 232 | 25 207 Time Decay 182 | 25 157 Lost Part 50 | . 50 Squads Dispatched 1 | . 1 Investigation . | . . Extermination . | . . Reinforcement 1 | . 1 Assault . | . . Garrison . | . . Intercept . | . . Searches Triggered . | . . Construction Impeded . | . . Haulers Reinforced . | . . Active Scanning Responses . | . . Cargo Convoy Interrupts . | . . Stealth | -11 -10 --------- Run | Yrd Mat Distress Signals 1 | . 1 Communications Jammed . | . . Distress Signals . | . . Times Spotted 14 | . 14 Peak Tracking Total 6 | . 6 Tactical Retreats 1 | . 1 Traps | -11 -10 ------- Run | Yrd Mat Traps Triggered . | . . Indirectly . | . . Trap Hack Attempts . | . . Triggered . | . . Disarmed . | . . Reprogrammed . | . . Reused . | . . Traps Extracted . | . . Installed . | . . Triggered . | . . Machines | -11 -10 ---------- Run | Yrd Mat Machines Disabled . | . . Max in Single Turn . | . . Machines Repaired . | . . Machines Dismantled . | . . Machines Sabotaged . | . . Overloaded Fab Kills . | . . Hacking | -11 -10 --------- Run | Yrd Mat Machines Accessed 1 | . 1 Terminals 1 | . 1 Fabricators . | . . Repair Stations . | . . Recycling Units . | . . Scanalyzers . | . . Garrison Access . | . . Total Hacks 1 | . 1 Successful 1 | . 1 Failed . | . . Catastrophic . | . . Database Lockouts . | . . Manual . | . . Terminals 1 | . 1 Fabricators . | . . Repair Stations . | . . Recycling Units . | . . Scanalyzers . | . . Garrison Access . | . . Terminal Hacks 1 | . 1 Hauler Manifests 1 | . 1 Fabricator Hacks . | . . Repair Station Hacks . | . . Recycling Unit Hacks . | . . Scanalyzer . | . . Garrison Access Hacks . | . . Unauthorized Hacks . | . . Terminals . | . . Fabricators . | . . Repair Stations . | . . Recycling Units . | . . Scanalyzers . | . . Garrison Access . | . . Data Cores Recovered . | . . Used . | . . Hacking Detections . | . . Full Trace Events . | . . Feedback Events . | . . Feedback Blocked . | . . Robot Schematics Acquired . | . . Robots Built . | . . Authchips . | . . Time . | . . Total Robot Build Rating . | . . Part Schematics Acquired . | . . Parts Built . | . . Authchips . | . . Time . | . . Total Part Build Rating . | . . Parts Repaired . | . . Time . | . . Parts Recycled . | . . Recycled Matter . | . . Retrieved Matter . | . . Retrieved Components . | . . Parts Scanalyzed . | . . Part Schematics Acquired . | . . Parts Damaged . | . . Bothacking | -11 -10 ------------ Run | Yrd Mat Used RIF Installer . | . . Robots Hacked . | . . Non-combat . | . . Combat . | . . Robot Hacks Applied . | . . Relay Couplers Released . | . . Fabnet Peak Effective % . | . . Robots Rewired . | . . Allies Hacked . | . . Hacks Repelled . | . . Allies | -11 -10 -------- Run | Yrd Mat Total Allies . | . . Largest Group . | . . Highest-Rated Group . | . . Highest-Rated Ally . | . . Total Orders . | . . Ally Attacks . | . . Total Damage . | . . Kills . | . . Allies Corrupted . | . . Allies Melted . | . . Intel | -11 -10 ------- Run | Yrd Mat Active Infowar (turns) 481 | 21 460 Seismic 481 | 21 460 Robot Analysis Total . | . . Derelict Logs Recovered . | . . Drone Launches . | . . Drone Recoveries . | . . Exploration | -11 -10 ------------- Run | Yrd Mat Turns Passed 648 | 188 460 Spaces Moved 417 | 119 298 Core 39 | 34 5 Treads . | . . Legs 378 | 85 293 Wheels . | . . Hover . | . . Flight . | . . Fastest Speed 50 | 50 100 Average Speed 117 | 110 120 Slowest Speed 150 | 150 150 Overloaded Moves . | . . Propulsion Burnouts . | . . Robots Hopped . | . . Potential Cave-ins . | . . Cave-ins Triggered . | . . Exploration Rate (%) 24 | 5 44 Regions Visited 1 Branch Regions . Pre-discovered Areas . | . . Known Exits Taken . | . . Unknown Exits Taken 1 | 1 . Scrap Searched . | . . Spaces Dug . | . . Terrain Destroyed . | . . Melee . | . . Projectile . | . . AOE . | . . Terrain Rammed . | . . Walls Destroyed . | . . Machines Disabled . | . . Actions | -11 -10 --------- Run | Yrd Mat Total 494 | 144 350 Wait 11 | . 11 Move 416 | 118 298 Hop . | . . Pick Up 11 | 5 6 Fast Attach 7 | 7 . Attach . | . . Detach . | . . Swap . | . . Drop 3 | . 3 Fire 46 | 14 32 Melee . | . . Ram . | . . Kick . | . . Crush . | . . Escape Stasis . | . . Rewire . | . . Trap . | . . Miscellaneous . | . . Route ------- -11/Scrapyard -10/Materials (discovered 1 exit: [*Mat]) History --------- Turn | Location | Event 6 | -11/Scrapyard | Discovered new exit (range 16) 189 | -11/Scrapyard | Entered Materials 311 | -10/Materials | Build established: Mutant 634 | -10/Materials | Core integrity fell below 50% 642 | -10/Materials | Discovered new exit (range 8) 643 | -10/Materials | Core integrity fell below 20% 649 | -10/Materials | Destroyed by G-34 Mercenary with Small Laser Last Messages --------------- 00605_ Switching to secondary target: G-47 Trooper. 00607_ K-01 Serf collects debris. 00611_ Overheating: System interference. 00611_ Med. Laser temporarily disabled. 00611_ K-01 Serf collects debris. 00611_ G-47 Trooper suffers critical hit (Burn). 00613_ R-06 Scavenger collects Lgt. Ion Engine. 00614_ K-01 Serf collects debris. 00620_ Med. Laser destroyed. 00621_ K-01 Serf cleans the TF Node. 00627_ Aluminum Leg destroyed. 00627_ K-01 Serf collects debris. 00629_ R-06 Scavenger collects Flight Unit. 00630_ Ion Engine destroyed. 00631_ K-01 Serf collects debris. 00642_ EXIT=FOUND 00643_ Aluminum Leg destroyed. 00644_ Overheating: Energy bleed (-22). 00646_ Med. Laser destroyed. 00649_ G-47 Trooper heat spikes uncontrollably. Map ----- +----------------------------------------------------+ | ??????????#/= ## "T" | | ??????????#/! ## """ | | ??????????# ## | | ########### ## | | # """ ## ## ########### | | # "R" ## ## ##???? | | # " " ####+### % #?? ? | | # # T # """ "?? | | # + "" + """ "?? | | #""" # # """ "?? | | #""" = ####+### #?? ? | | #""" #?# ## ##???? | | # !#?# ## #???????### | | ##########?# [ ## #?????????? | | ???????????# ## #?????????? | | ???????????# ## #?????????? | | ???????????#!! ## #?????????? | | ???????????#!! ## #?????????? | | ???????????# ## #?????????? | | ???????????# + #?????????? | | ????############## #?????????? | | ????#!!!![[#?????# #?????????? | | ????#!!!![[#?????# #?????????? | | ????# #?????# #?????????? | | ????# #?????## ##??????? | | ????# @ ####### ###### | | ????# | | ????# g " | | ????# g =k =%[ | | ????# ####### %% ########## | | ????## ##?????###+###????????? | | ?????# #??????? ?????????? | | ?????# #????? !???????? | | ?????# #????# #??????? | | ?????# #????# #??????? | | ?????# < #????# #??????? | | ?????# #????# #??????? | | ?????#####????# #??????? | | ??????????????# #??????? | | ??????????????###/#######??????? | | ???????????????? ?????????????? | | ????????????????##?????????????? | | ???????????????????????????????? | | ???????????????????????????????? | | ???????????????????????????????? | | ???????????????????????????????? | | ???????????????????????????????? | | | | | | | +----------------------------------------------------+ Best States ------------- Heat Dissipation 25 Energy Generation 10 Energy Capacity 250 Matter Stores 300 Matter Capacity 300 Sight Range 16 Terrain Scan Density 10 Evasion (%) 55 Item Schematics ----------------- None Robot Schematics ------------------ None Fabricated ------------ Nothing Repaired ---------- Nothing Alien Tech Used ----------------- None Achievements -------------- None Challenges ------------ None Game ------ Seed LatentHypercooledDrive Manual? 0 Play Time 00:07:55 Cumulative 10.6 hours Start 2025.10.04 @ 21:59:04 End 2025.10.04 @ 22:22:25 Sessions 1 Manual Loads 0 Difficulty Rogue Special Mode None Game No. 32 Rogue 25 Adventurer 7 Explorer 0 Win Type - Total 0 Types 0/0/0/0/0/0/0/0/0/0 Lore% 2 Gallery% 14 Achievement% 13 Wizard Run 0 Options --------- Layout 1 ASCII 0 Keyboard 1 Movement Vi Keybinds 0 Fullscreen 1 Font 24/Smallcaps Map View 76x35 Zoom Use 0% Tactical HUD 1 Map Filters NONE Filters NONE Steam 1 RUN: 414af404-ec09-4dd1-86b4-5eaaf055bef4